fUST/lending_fUST_20241118
["ID","MTS","AMOUNT","RATE_DAILY","PERIOD"]
[342465940,1731918639151,-574.89,0.00014473,2]
[342465942,1731918639161,-2407.17,0.00014746,2]
[342465944,1731918639171,-6373.64,0.00014746,2]
[342465946,1731918639180,-1439.38,0.00014746,2]
[342465948,1731918639190,-500.0,0.00014746,2]
[342465950,1731918639199,-1431.71,0.00014746,2]
[342465952,1731918639209,-500.0,0.00014746,2]
[342465954,1731918639220,-467.24906579,0.00014746,2]
[342465957,1731918639238,-32.75093421,0.00014746,2]
[342465959,1731918639248,-224.33906579,0.00014746,2]
[342465961,1731918639261,-275.66093421,0.00014746,2]
[342465963,1731918639270,-43.57893669,0.00014746,2]
[342465966,1731918639281,-456.42106331,0.00014746,2]
[342465967,1731918639291,-394.20537847,0.00014746,2]
[342465969,1731918639300,-1.85938767,0.00014747,2]
[342465972,1731918639310,-271.26451616,0.00014747,2]
[342465974,1731918639320,-500.0,0.00014747,2]
[342465976,1731918639329,-1574.48,0.00014747,2]
[342465977,1731918639338,-920.0,0.00014747,2]
[342465979,1731918639347,-633.84,0.00014747,2]
[342465981,1731918639357,-633.92,0.00014747,2]
[342465983,1731918639366,-1288.13,0.00014747,2]
[342465985,1731918639375,-357.41370421,0.00014747,2]
[342465988,1731918639386,-71.92256759,0.00014747,2]
[342465990,1731918639409,-428.07743241,0.00014747,2]
[342465992,1731918639418,-585.5,0.00014747,2]
[342465994,1731918639428,-500.0,0.00014747,2]
[342465996,1731918639437,-338.77037393,0.00014747,2]
[342465999,1731918639447,-500.0,0.00014747,2]
[342466000,1731918639457,-500.0,0.00014747,2]
[342466003,1731918639467,-1605.64,0.00014747,2]
[342466005,1731918639477,-500.0,0.00014747,2]
[342466007,1731918639487,-779.05,0.00014747,2]
[342466008,1731918639496,-201.32827666,0.00014747,2]
[342466080,1731918640172,-871.00172334,0.00014747,2]
[342466082,1731918640182,-625.82,0.00014747,2]
[342466085,1731918640192,-842.51,0.00014747,2]
[342466087,1731918640202,-590.85,0.00014747,2]
[342466089,1731918640212,-170.710485,0.00014747,2]
[342466091,1731918640222,-170.710485,0.00014747,2]
[342466093,1731918640232,-2796.62,0.00014747,2]
[342466094,1731918640242,-1438.13,0.00014747,2]
[342466096,1731918640251,-574.89,0.00014747,2]
[342466099,1731918640261,-2000.91754557,0.00014781,2]
[342466100,1731918640270,-411.06108767,0.00014784,2]
[342466103,1731918640279,-2046.16055232,0.00014819,2]
[342466105,1731918640289,-500.0,0.00014919,2]
[342466107,1731918640298,-500.0,0.00014919,2]
[342466109,1731918640308,-1243.33058462,0.00014919,2]
[342466116,1731918640371,-130.906285,0.00014919,2]
[342466118,1731918640383,-337.71313038,0.00014919,2]
[342466120,1731918640394,-4189.44,0.00014919,2]
[342466123,1731918640405,-554.37,0.00014919,2]
[342466125,1731918640414,-1407.25,0.00014919,2]
[342466127,1731918640423,-2900.8,0.00014919,2]
[342466128,1731918640432,-500.0,0.00014919,2]
[342466130,1731918640441,-811.78,0.00014919,2]
[342466132,1731918640451,-1349.81,0.00014919,2]
[342466135,1731918640461,-575.32,0.00014919,2]
[342466137,1731918640471,-958.39,0.00014919,2]
[342466139,1731918640480,-975.14,0.00014919,2]
[342466141,1731918640489,-500.0,0.00014919,2]
[342466143,1731918640499,-1037.13,0.00014919,2]
[342466145,1731918640508,-500.0,0.00014919,2]
[342466147,1731918640517,-1798.16,0.00014919,2]
[342466149,1731918640526,-510.82808382,0.00014919,2]
[342466151,1731918640535,-500.0,0.00014919,2]
[342466153,1731918640544,-500.0,0.00014919,2]
[342466155,1731918640553,-500.0,0.00014919,2]
[342466157,1731918640562,-500.0,0.00014919,2]
[342466159,1731918640571,-24900.0,0.0001492,2]
[342466161,1731918640581,-151.0,0.0001492,2]
[342466162,1731918640591,-574.632172,0.0001492,2]
[342466164,1731918640600,-574.632172,0.0001492,2]
[342466166,1731918640609,-151.0,0.0001492,2]
[342466168,1731918640618,-170.710485,0.0001492,2]
[342466171,1731918640628,-251.348729,0.0001492,2]
[342466173,1731918640639,-170.710485,0.0001492,2]
[342466195,1731918640844,-251.348729,0.0001492,2]
[342466198,1731918640855,-396.6938595,0.0001497,2]
[342466200,1731918640864,-411.06108767,0.0001499,2]
[342466202,1731918640874,-9365.81,0.0001502,2]
[342466204,1731918640884,-2407.17,0.0001502,2]
[342466206,1731918640895,-6373.64,0.0001502,2]
[342466208,1731918640905,-1439.38,0.0001502,2]
[342466210,1731918640914,-500.0,0.0001502,2]
[342466212,1731918640925,-1431.71,0.0001502,2]
[342466214,1731918640936,-500.0,0.0001502,2]
[342466216,1731918640946,-500.0,0.0001502,2]
[342466218,1731918640956,-500.0,0.0001502,2]
[342466220,1731918640966,-500.0,0.0001502,2]
[342466222,1731918640978,-625.09656326,0.00015021,2]
[342466224,1731918640987,-500.0,0.00015021,2]
[342466226,1731918640996,-1126.88,0.00015021,2]
[342466228,1731918641005,-617.45,0.00015021,2]
[342466230,1731918641019,-500.0,0.00015021,2]
[342466232,1731918641028,-500.0,0.00015021,2]
[342466234,1731918641037,-500.0,0.00015021,2]
[342466236,1731918641047,-654.93,0.00015021,2]
[342466238,1731918641057,-500.0,0.00015021,2]
[342466240,1731918641067,-733.42,0.00015021,2]
[342466242,1731918641077,-500.0,0.00015021,2]
[342466244,1731918641086,-659.83,0.00015021,2]
[342466246,1731918641096,-500.0,0.00015021,2]
[342466248,1731918641106,-500.0,0.00015021,2]
[342466250,1731918641115,-1466.61,0.00015021,2]
[342466252,1731918641124,-827.12,0.00015021,2]
[342466254,1731918641133,-500.0,0.00015021,2]
[342466256,1731918641144,-820.17,0.00015021,2]
[342466258,1731918641153,-500.0,0.00015021,2]
[342466260,1731918641162,-686.56,0.00015021,2]
[342466262,1731918641171,-2006.78,0.00015021,2]
[342466264,1731918641181,-2000.0,0.00015021,2]
[342466266,1731918641190,-1323.43,0.00015021,2]
[342466268,1731918641199,-1798.88,0.00015021,2]
[342466270,1731918641209,-454.14955812,0.00015021,2]
[342466272,1731918641218,-946.74,0.00015021,2]
[342466274,1731918641227,-2925.78,0.00015021,2]
[342466276,1731918641236,-500.0,0.00015021,2]
[342466278,1731918641245,-945.91,0.00015021,2]
[342466280,1731918641254,-500.0,0.00015021,2]
[342466282,1731918641263,-1574.48,0.00015021,2]
[342466284,1731918641273,-920.0,0.00015021,2]
[342466286,1731918641282,-633.84,0.00015021,2]
[342466288,1731918641292,-633.92,0.00015021,2]
[342466290,1731918641301,-1288.13,0.00015021,2]
[342466292,1731918641310,-500.0,0.00015021,2]
[342466294,1731918641319,-585.5,0.00015021,2]
[342466296,1731918641329,-500.0,0.00015021,2]
[342466298,1731918641338,-500.0,0.00015021,2]
[342466300,1731918641347,-500.0,0.00015021,2]
[342466302,1731918641356,-1605.64,0.00015021,2]
[342466304,1731918641366,-500.0,0.00015021,2]
[342466306,1731918641375,-779.05,0.00015021,2]
[342466309,1731918641386,-1072.33,0.00015021,2]
[342466311,1731918641396,-625.82,0.00015021,2]
[342466313,1731918641406,-842.51,0.00015021,2]
[342466314,1731918641416,-590.85,0.00015021,2]
[342466316,1731918641428,-170.710485,0.00015021,2]
[342466318,1731918641437,-170.710485,0.00015021,2]
[342466320,1731918641447,-2796.62,0.00015021,2]
[342466322,1731918641457,-1438.13,0.00015021,2]
[342466324,1731918641466,-574.89,0.00015021,2]
[342466325,1731918641475,-500.0,0.00015193,2]
[342466326,1731918641484,-582.19195044,0.00015193,2]
[342466327,1731918641493,-1711.95,0.00015193,2]
[342466328,1731918641504,-4189.44,0.00015193,2]
[342466329,1731918641513,-554.37,0.00015193,2]
[342466330,1731918641523,-151.0,0.00015193,2]
[342466331,1731918641532,-1407.25,0.00015193,2]
[342466332,1731918641541,-574.632172,0.00015193,2]
[342466333,1731918641551,-2900.8,0.00015193,2]
[342466334,1731918641560,-574.632172,0.00015193,2]
[342466335,1731918641569,-500.0,0.00015193,2]
[342466336,1731918641579,-811.78,0.00015193,2]
[342466337,1731918641588,-200.703502,0.00015193,2]
[342466338,1731918641597,-1349.81,0.00015193,2]
[342466339,1731918641606,-575.32,0.00015193,2]
[342466340,1731918641615,-958.39,0.00015193,2]
[342466341,1731918641625,-975.14,0.00015193,2]
[342466342,1731918641634,-500.0,0.00015193,2]
[342466343,1731918641647,-1037.13,0.00015193,2]
[342466344,1731918641660,-500.0,0.00015193,2]
[342466345,1731918641669,-1798.16,0.00015193,2]
[342466346,1731918641678,-500.0,0.00015193,2]
[342466347,1731918641689,-251.348729,0.00015193,2]
[342466349,1731918641699,-500.0,0.00015193,2]
[342466351,1731918641708,-251.348729,0.00015193,2]
[342466353,1731918641718,-500.0,0.00015193,2]
[342466355,1731918641727,-500.0,0.00015193,2]
[342466356,1731918641736,-411.06108767,0.00015195,2]
[342466358,1731918641746,-9365.81,0.00015294,2]
[342466360,1731918641755,-2407.17,0.00015294,2]
[342466362,1731918641764,-6373.64,0.00015294,2]
[342466364,1731918641774,-1439.38,0.00015294,2]
[342466366,1731918641783,-500.0,0.00015294,2]
[342466368,1731918641792,-1431.71,0.00015294,2]
[342466370,1731918641802,-500.0,0.00015294,2]
[342466372,1731918641811,-500.0,0.00015294,2]
[342466374,1731918641822,-500.0,0.00015294,2]
[342466376,1731918641831,-500.0,0.00015294,2]
[342466378,1731918641840,-208.729027,0.00015294,2]
[342466380,1731918641850,-169.34297513,0.00015294,2]
[342466382,1731918641860,-209.22647683,0.00015294,2]
[342466384,1731918641869,-500.0,0.00015295,2]
[342466386,1731918641879,-1126.88,0.00015295,2]
[342466388,1731918641889,-617.45,0.00015295,2]
[342466390,1731918641899,-500.0,0.00015295,2]
[342466392,1731918641908,-500.0,0.00015295,2]
[342466394,1731918641918,-500.0,0.00015295,2]
[342466396,1731918641931,-654.93,0.00015295,2]
[342466398,1731918641941,-500.0,0.00015295,2]
[342466400,1731918641951,-733.42,0.00015295,2]
[342466402,1731918641960,-500.0,0.00015295,2]
[342466404,1731918641971,-659.83,0.00015295,2]
[342466406,1731918641980,-500.0,0.00015295,2]
[342466408,1731918641990,-500.0,0.00015295,2]
[342466410,1731918642001,-1466.61,0.00015295,2]
[342466412,1731918642010,-827.12,0.00015295,2]
[342466414,1731918642020,-500.0,0.00015295,2]
[342466416,1731918642029,-820.17,0.00015295,2]
[342466418,1731918642038,-500.0,0.00015295,2]
[342466420,1731918642047,-686.56,0.00015295,2]
[342466422,1731918642057,-2006.78,0.00015295,2]
[342466424,1731918642066,-2000.0,0.00015295,2]
[342466426,1731918642075,-1323.43,0.00015295,2]
[342466428,1731918642085,-1798.88,0.00015295,2]
[342466430,1731918642094,-946.74,0.00015295,2]
[342466431,1731918642104,-2925.78,0.00015295,2]
[342466433,1731918642113,-265.276535,0.00015295,2]
[342466435,1731918642123,-265.276535,0.00015295,2]
[342466437,1731918642132,-478.1752572,0.00015295,2]
[342466439,1731918642143,-945.91,0.00015295,2]
[342466441,1731918642152,-500.0,0.00015295,2]
[342466443,1731918642161,-1574.48,0.00015295,2]
[342466445,1731918642171,-920.0,0.00015295,2]
[342466447,1731918642180,-633.84,0.00015295,2]
[342466449,1731918642190,-633.92,0.00015295,2]
[342466451,1731918642199,-1288.13,0.00015295,2]
[342466453,1731918642208,-500.0,0.00015295,2]
[342466455,1731918642218,-585.5,0.00015295,2]
[342466457,1731918642227,-500.0,0.00015295,2]
[342466459,1731918642237,-500.0,0.00015295,2]
[342466461,1731918642246,-391.08073377,0.00015295,2]
[342466463,1731918642256,-1605.64,0.00015295,2]
[342466465,1731918642266,-500.0,0.00015295,2]
[342466467,1731918642275,-779.05,0.00015295,2]
[342466469,1731918642284,-151.0,0.00015295,2]
[342466471,1731918642293,-1072.33,0.00015295,2]
[342466473,1731918642303,-574.632172,0.00015295,2]
[342466475,1731918642312,-574.632172,0.00015295,2]
[342466477,1731918642321,-625.82,0.00015295,2]
[342466479,1731918642331,-842.51,0.00015295,2]
[342466481,1731918642341,-196.943723,0.00015295,2]
[342466483,1731918642351,-196.943723,0.00015295,2]
[342466485,1731918642360,-590.85,0.00015295,2]
[342466487,1731918642369,-170.710485,0.00015295,2]
[342466489,1731918642379,-251.348729,0.00015295,2]
[342466491,1731918642388,-170.710485,0.00015295,2]
[342466493,1731918642398,-251.348729,0.00015295,2]
[342466495,1731918642407,-2796.62,0.00015295,2]
[342466497,1731918642417,-1438.13,0.00015295,2]
[342466499,1731918642428,-574.89,0.00015295,2]
[342466501,1731918642437,-282.06193457,0.00015467,2]
[342466503,1731918642447,-1711.95,0.00015467,2]
[342466505,1731918642457,-4189.44,0.00015467,2]
[342466507,1731918642466,-554.37,0.00015467,2]
[342466509,1731918642476,-1407.25,0.00015467,2]
[342466511,1731918642486,-2900.8,0.00015467,2]
[342466515,1731918642495,-500.0,0.00015467,2]
[342466517,1731918642504,-811.78,0.00015467,2]
[342466519,1731918642514,-1349.81,0.00015467,2]
[342466521,1731918642523,-575.32,0.00015467,2]
[342466523,1731918642532,-958.39,0.00015467,2]
[342466525,1731918642542,-783.45402452,0.00015467,2]
[342466588,1731918643046,-191.68597548,0.00015467,2]
[342466590,1731918643056,-500.0,0.00015467,2]
[342466592,1731918643065,-726.27292523,0.00015467,2]
[342466597,1731918643110,-310.85707477,0.00015467,2]
[342466599,1731918643119,-500.0,0.00015467,2]
[342466601,1731918643129,-1798.16,0.00015467,2]
[342466603,1731918643140,-500.0,0.00015467,2]
[342466606,1731918643150,-170.710485,0.00015467,2]
[342466608,1731918643159,-478.25432509,0.00015467,2]
[342466610,1731918643168,-170.710485,0.00015467,2]
[342466612,1731918643177,-500.0,0.00015467,2]
[342466614,1731918643187,-366.69362725,0.00015467,2]
[342466617,1731918643204,-133.30637275,0.00015467,2]
[342466619,1731918643214,-420.0,0.0001555,2]
[342466621,1731918643223,-9365.81,0.00015568,2]
[342466623,1731918643233,-2407.17,0.00015568,2]
[342466625,1731918643243,-6373.64,0.00015568,2]
[342466627,1731918643252,-1439.38,0.00015568,2]
[342466629,1731918643262,-500.0,0.00015568,2]
[342466631,1731918643271,-1431.71,0.00015568,2]
[342466633,1731918643281,-500.0,0.00015568,2]
[342466635,1731918643290,-500.0,0.00015568,2]
[342466637,1731918643299,-500.0,0.00015568,2]
[342466639,1731918643308,-500.0,0.00015568,2]
[342466641,1731918643317,-500.0,0.00015569,2]
[342466643,1731918643326,-1126.88,0.00015569,2]
[342466645,1731918643335,-617.45,0.00015569,2]
[342466647,1731918643345,-500.0,0.00015569,2]
[342466649,1731918643355,-500.0,0.00015569,2]
[342466651,1731918643364,-500.0,0.00015569,2]
[342466653,1731918643374,-654.93,0.00015569,2]
[342466655,1731918643383,-500.0,0.00015569,2]
[342466657,1731918643395,-733.42,0.00015569,2]
[342466659,1731918643404,-500.0,0.00015569,2]
[342466661,1731918643413,-659.83,0.00015569,2]
[342466663,1731918643422,-500.0,0.00015569,2]
[342466665,1731918643431,-590.27473501,0.00015569,2]
[342466667,1731918643441,-1466.61,0.00015569,2]
[342466669,1731918643450,-827.12,0.00015569,2]
[342466671,1731918643460,-500.0,0.00015569,2]
[342466673,1731918643469,-820.17,0.00015569,2]
[342466675,1731918643478,-500.0,0.00015569,2]
[342466677,1731918643487,-686.56,0.00015569,2]
[342466679,1731918643497,-2006.78,0.00015569,2]
[342466681,1731918643506,-2000.0,0.00015569,2]
[342466683,1731918643515,-1323.43,0.00015569,2]
[342466684,1731918643524,-1798.88,0.00015569,2]
[342466687,1731918643534,-946.74,0.00015569,2]
[342466688,1731918643544,-2925.78,0.00015569,2]
[342466691,1731918643553,-447.0548061,0.00015569,2]
[342466693,1731918643566,-498.8551939,0.00015569,2]
[342466695,1731918643576,-500.0,0.00015569,2]
[342466697,1731918643585,-1574.48,0.00015569,2]
[342466699,1731918643595,-920.0,0.00015569,2]
[342466701,1731918643604,-633.84,0.00015569,2]
[342466703,1731918643614,-633.92,0.00015569,2]
[342466705,1731918643624,-474.55287957,0.00015569,2]
[342466707,1731918643637,-813.57712043,0.00015569,2]
[342466709,1731918643647,-427.15,0.00015569,2]
[342466711,1731918643656,-585.5,0.00015569,2]
[342466713,1731918643665,-500.0,0.00015569,2]
[342466715,1731918643675,-500.0,0.00015569,2]
[342466717,1731918643685,-1605.64,0.00015569,2]
[342466719,1731918643694,-500.0,0.00015569,2]
[342466721,1731918643704,-779.05,0.00015569,2]
[342466723,1731918643714,-151.0,0.00015569,2]
[342466725,1731918643724,-1072.33,0.00015569,2]
[342466727,1731918643733,-574.632172,0.00015569,2]
[342466729,1731918643743,-574.632172,0.00015569,2]
[342466731,1731918643752,-625.82,0.00015569,2]
[342466733,1731918643761,-842.51,0.00015569,2]
[342466735,1731918643771,-590.85,0.00015569,2]
[342466737,1731918643781,-170.710485,0.00015569,2]
[342466739,1731918643791,-251.348729,0.00015569,2]
[342466741,1731918643800,-170.710485,0.00015569,2]
[342466743,1731918643810,-251.348729,0.00015569,2]
[342466745,1731918643820,-2796.62,0.00015569,2]
[342466747,1731918643829,-1438.13,0.00015569,2]
[342466749,1731918643839,-574.89,0.00015569,2]
[342466751,1731918643848,-263.22046593,0.00015617,2]
[342476162,1731918753466,33028.4706942,0.00013361,2]
[342476164,1731918881844,250.0,0.00013361,2]
[342476165,1731918895332,1098.9506276,0.00013468,2]
[342476167,1731918992967,23932.314373,0.00013293,2]
[342476170,1731919453434,161.4574547,0.00013196,2]
[342476171,1731919547135,-584.05898978,0.00014096,2]
[342476172,1731919547157,-584.05898977,0.00014165,2]
[342476173,1731919547177,-300.0,0.00014194,2]
[342476174,1731919547198,-7024.36,0.00014195,2]
[342476175,1731919547219,-1805.38,0.00014195,2]
[342476176,1731919547243,-4780.23,0.00014195,2]
[342476177,1731919547263,-500.0,0.00014195,2]
[342476178,1731919547283,-500.0,0.00014195,2]
[342476179,1731919547305,-1073.78,0.00014195,2]
[342476180,1731919547325,-1079.54,0.00014195,2]
[342476181,1731919547347,-500.0,0.00014195,2]
[342476182,1731919547366,-500.0,0.00014195,2]
[342476183,1731919547386,-473.04259862,0.00014196,2]
[342476184,1731919547406,-500.0,0.00014196,2]
[342476185,1731919547426,-500.0,0.00014196,2]
[342476186,1731919547447,-1600.58,0.00014196,2]
[342476187,1731919547467,-500.0,0.00014196,2]
[342476188,1731919547486,-500.0,0.00014196,2]
[342476189,1731919547506,-500.0,0.00014196,2]
[342476190,1731919547526,-500.0,0.00014196,2]
[342476191,1731919547546,-1175.61,0.00014196,2]
[342476192,1731919547566,-370.97427872,0.00014196,2]
[342476193,1731919547586,-500.0,0.00014196,2]
[342476194,1731919547608,-1147.78,0.00014196,2]
[342476195,1731919547629,-500.0,0.00014196,2]
[342476196,1731919547652,-26315.96932376,0.00014196,2]
[342476197,1731919636328,-1389.47468009,0.00014096,2]
[342476198,1731919647125,-400.91580319,0.00014096,2]
[342476199,1731919647147,-300.0,0.00014194,2]
[342476200,1731919647170,-300.0,0.00014194,2]
[342476201,1731919647193,-32882.77743763,0.00014195,2]
[342476202,1731919690063,178.4067164,0.0001401,2]
[342476205,1731919756096,-350.43539387,0.00014095,2]
[342476206,1731919756117,-1566.59167287,0.00014095,2]
[342476207,1731919756137,-350.43539386,0.00014096,2]
[342476208,1731919756157,-350.43539386,0.00014097,2]
[342476209,1731919756177,-350.43539386,0.00014097,2]
[342476210,1731919756196,-350.43539386,0.00014098,2]
[342476211,1731919756216,-300.0,0.00014193,2]
[342476212,1731919756247,-300.0,0.00014193,2]
[342476213,1731919756270,-1730.15,0.00014194,2]
[342476214,1731919756296,-6731.68,0.00014194,2]
[342476215,1731919756316,-1029.04,0.00014194,2]
[342476216,1731919756337,-6544.93256237,0.00014195,2]
[342476217,1731919756357,-1497.96,0.00014195,2]
[342476218,1731919756377,-500.0,0.00014195,2]
[342476219,1731919756397,-500.0,0.00014195,2]
[342476220,1731919756418,-3665.76,0.00014195,2]
[342476221,1731919756439,-500.0,0.00014195,2]
[342476222,1731919756461,-1231.34,0.00014195,2]
[342476223,1731919756481,-723.34,0.00014195,2]
[342476224,1731919756502,-719.45,0.00014195,2]
[342476225,1731919756524,-372.31145223,0.00014195,2]
[342476226,1731919756544,-710.31,0.00014195,2]
[342476227,1731919756565,-2538.2,0.00014195,2]
[342476228,1731919756586,-1290.06,0.00014195,2]
[342476229,1731919756606,-500.0,0.00014195,2]
[342476230,1731919756627,-1181.08,0.00014195,2]
[342476231,1731919756648,-407.92772077,0.00014195,2]
[342476232,1731919756668,-356.07335512,0.00014195,2]
[342476233,1731919756688,-503.41,0.00014195,2]
[342476234,1731919756709,-529.25587311,0.00014195,2]
[342476235,1731919756730,-228.75559299,0.00014195,2]
[342476236,1731919756750,-500.0,0.00014195,2]
[342476237,1731919756771,-500.0,0.00014195,2]
[342476238,1731919756793,-853.25,0.00014195,2]
[342476239,1731919756814,-290.04372837,0.00014195,2]
[342476240,1731919756835,-907.49,0.00014195,2]
[342476241,1731919756856,-500.0,0.00014195,2]
[342476242,1731919756877,-500.0,0.00014195,2]
[342476243,1731919756898,-1573.39,0.00014195,2]
[342476244,1731919756919,-500.0,0.00014195,2]
[342476245,1731919756941,-502.10230827,0.00014195,2]
[342476246,1731919756961,-500.0,0.00014195,2]
[342476247,1731919756982,-500.0,0.00014195,2]
[342476248,1731919757002,-645.87,0.00014195,2]
[342476249,1731919757022,-529.57680423,0.00014195,2]
[342476250,1731919757044,-464.81215046,0.00014195,2]
[342476251,1731919757065,-500.0,0.00014195,2]
[342476252,1731919757088,-5979.68,0.00014195,2]
[342476253,1731919757112,-500.0,0.00014195,2]
[342476254,1731919757134,-500.0,0.00014195,2]
[342476255,1731919757153,-500.0,0.00014195,2]
[342476256,1731919757174,-500.0,0.00014195,2]
[342476257,1731919757194,-500.0,0.00014196,2]
[342476258,1731919757214,-518.90747882,0.00014196,2]
[342476259,1731919757234,-500.0,0.00014196,2]
[342476260,1731919757254,-519.39244337,0.00014196,2]
[342476261,1731919757274,-502.65267119,0.00014196,2]
[342476262,1731919757299,-500.0,0.00014196,2]
[342476263,1731919757319,-500.0,0.00014196,2]
[342476264,1731919757341,-500.0,0.00014196,2]
[342476265,1731919757364,-500.0,0.00014196,2]
[342476266,1731919757386,-779.21,0.00014196,2]
[342476267,1731919757406,-2217.81,0.00014196,2]
[342476268,1731919757426,-500.0,0.00014196,2]
[342476269,1731919757446,-991.21,0.00014196,2]
[342476270,1731919757465,-2336.0,0.00014196,2]
[342476271,1731919757486,-885.57,0.00014196,2]
[342476272,1731919757507,-500.0,0.00014196,2]
[342476273,1731919757528,-500.0,0.00014196,2]
[342476274,1731919757548,-1157.22,0.00014196,2]
[342476275,1731919757570,-770.42,0.00014196,2]
[342476276,1731919757592,-564.27,0.00014196,2]
[342476277,1731919757613,-1130.39,0.00014196,2]
[342476278,1731919757635,-680.09,0.00014196,2]
[342476279,1731919757656,-500.0,0.00014196,2]
[342476280,1731919757933,-620.97,0.00014196,2]
[342476281,1731919757956,-1570.01,0.00014196,2]
[342476282,1731919757977,-722.07,0.00014196,2]
[342476283,1731919757998,-1235.43,0.00014196,2]
[342476284,1731919758020,-500.0,0.00014196,2]
[342476285,1731919758040,-1725.51,0.00014196,2]
[342476286,1731919758060,-500.0,0.00014196,2]
[342476287,1731919758080,-3196.15,0.00014196,2]
[342476288,1731919758101,-6423.53,0.00014196,2]
[342476289,1731919758121,-510.45075213,0.00014196,2]
[342476290,1731919758141,-501.45794595,0.00014196,2]
[342476291,1731919758161,-627.64,0.00014196,2]
[342476292,1731919758181,-500.0,0.00014196,2]
[342476293,1731919758201,-1531.81,0.00014196,2]
[342476294,1731919758221,-712.28,0.00014196,2]
[342476295,1731919758241,-220.41470877,0.00014196,2]
[342476296,1731919758261,-1044.13,0.00014196,2]
[342476297,1731919758291,-500.0,0.00014196,2]
[342476298,1731919758312,-739.26,0.00014196,2]
[342476299,1731919758334,-606.9358538,0.00014196,2]
[342476300,1731919769107,-4581.05,0.00014194,2]
[342476301,1731919769129,-691.98,0.00014195,2]
[342476302,1731919769149,-497.37446977,0.00014195,2]
[342476303,1731919769171,-500.0,0.00014195,2]
[342476304,1731919769194,-67.9241462,0.00014196,2]
[342476305,1731919769214,-606.48,0.00014196,2]
[342476306,1731919769235,-500.0,0.00014196,2]
[342476307,1731919769257,-1741.76,0.00014196,2]
[342476308,1731919769278,-643.5,0.00014196,2]
[342476309,1731919769305,-23322.42,0.00014196,2]
[342476310,1731919769327,-500.0,0.00014196,2]
[342476311,1731919769349,-13537.87,0.00014196,2]
[342476312,1731919769371,-500.0,0.00014196,2]
[342476313,1731919769393,-500.0,0.00014196,2]
[342476314,1731919769417,-647.04,0.00014196,2]
[342476315,1731919769438,-500.0,0.00014196,2]
[342476316,1731919769460,-500.0,0.00014196,2]
[342476317,1731919769482,-1318.1,0.00014196,2]
[342476318,1731919769504,-500.0,0.00014196,2]
[342476319,1731919769525,-611.9,0.00014196,2]
[342476320,1731919769548,-1721.14,0.00014196,2]
[342476321,1731919769569,-500.0,0.00014196,2]
[342476322,1731919769589,-500.0,0.00014196,2]
[342476323,1731919769610,-502.4662839,0.00014196,2]
[342476324,1731919769632,-500.0,0.00014196,2]
[342476325,1731919769655,-2731.61,0.00014196,2]
[342476326,1731919769677,-433.45610689,0.00014196,2]
[342476327,1731919769700,-962.84,0.00014196,2]
[342476328,1731919769723,-500.0,0.00014196,2]
[342476329,1731919769746,-756.17,0.00014196,2]
[342476330,1731919769767,-843.4,0.00014196,2]
[342476331,1731919769788,-500.0,0.00014196,2]
[342476332,1731919769808,-500.0,0.00014196,2]